Cogmind - Beta 13 @@@ ROGUE MODE // 2024.04.18 @ 14:02:52 Player: JackZewap Result: Destroyed by DF-SZO(R) with Subdweller Laser Performance ------------- Evolutions (0) 0 Regions Visited (3) 600 Robots Destroyed (27) 135 Value Destroyed (663) 663 Prototype IDs (2) 40 Alien Tech Used (0) 0 Bonus (-4) -4 TOTAL SCORE: 1434 Bonus ------- Friendly Fire -4 Cogmind --------- Core Integrity 0/250 Matter 300/300 Energy 315/315 System Corruption 2% Temperature Cool (6) Movement Treading (160) Location -10/Subcaves Parts ------- > --- POWER (1) -------- Neutrino Core > --- PROPULSION (2) --- Light Treads > --- UTILITY (2) ------ (None) > --- WEAPON (2) ------- (None) > --- INVENTORY (5) ---- Heat Sink Transport Network Coupler Peak State ------------ > --- POWER ------------ Neutrino Core > --- PROPULSION ------- Light Treads Light Treads > --- UTILITY ---------- High-capacity Storage Unit Signal Interpreter > --- WEAPON ----------- Assault Rifle Light Cannon > --- INVENTORY -------- Ion Engine Light Treads Light Treads Light Treads Light Treads Heat Sink Improved Heat Sink Huge Storage Unit High-capacity Matter Pod Transport Network Coupler Scrap Shield Hacking Suite Tractor Beam Tractor Beam Light Assault Rifle Light Cannon [Rating: 14] Favorites ----------- Power Ion Engine Engine Ion Engine Power Core Light Nuclear Core Propulsion Light Treads Treads Light Treads Utility High-capacity Storage Unit Device Heat Sink Storage High-capacity Storage Unit Processor Signal Interpreter Protection Scrap Shield Weapon Light Assault Rifle Energy Gun Medium Laser Ballistic Gun Light Assault Rifle Ballistic Cannon Light Cannon Build | -11 -10 -10 -10 ------- Run | Yrd Mat Min Sub Slots Evolved . | . . . . Power . | . . . . Propulsion . | . . . . Utility . | . . . . Weapon . | . . . . Parts Attached 26 | 6 13 . 7 Power 4 | 1 2 . 1 Engine 2 | 1 1 . . Core 2 | . 1 . 1 Reactor . | . . . . Propulsion 7 | 2 2 . 3 Treads 7 | 2 2 . 3 Leg . | . . . . Wheel . | . . . . Hover . | . . . . Flight . | . . . . Utility 6 | 1 4 . 1 Device 1 | . 1 . . Storage 3 | 1 2 . . Processor 1 | . 1 . . Hackware . | . . . . Protection 1 | . . . 1 Artifact . | . . . . Weapon 9 | 2 5 . 2 Energy Gun 3 | 2 1 . . Energy Cannon . | . . . . Ballistic Gun 5 | . 4 . 1 Ballistic Cannon 1 | . . . 1 Launcher . | . . . . Special Weapon . | . . . . Impact Weapon . | . . . . Slashing Weapon . | . . . . Piercing Weapon . | . . . . Special Melee Weapon . | . . . . Unidentified Prototypes . | . . . . Parts Lost 11 | . 4 . 7 Power 2 | . 2 . . Propulsion 5 | . 1 . 4 Utility 1 | . . . 1 Weapon 3 | . 1 . 2 Highest Loss Streak 5 | . 2 . 5 To Critical Strikes . | . . . . Average Slot Usage (%) 86 | . 82 100 99 Engine 4 | . 2 14 9 Core 2 | . 3 . 4 Treads 27 | . 28 28 27 Device 3 | . 4 . . Storage 13 | . 14 14 13 Processor 4 | . 1 14 13 Energy Gun 3 | . 4 . . Ballistic Gun 23 | . 23 28 22 Naked Turns . | . . . . Heaviest Build 59 | 12 49 48 59 Greatest Support 40 | 40 40 40 40 Greatest Overweight (x) 2 | 2 1 1 1 Average Overweight (x) . | . . 1 . Largest Inventory Capacity 20 | 8 20 20 20 Average Capacity 17 | 7 16 20 19 Most Carried 19 | . 15 14 19 Average Carried 10 | . 9 14 16 Final Capacity 20 | 8 20 20 5 Final Carried 14 | . 14 14 2 Class Distribution -------------------- 100% | Mutant Dominant Class ---------------- Mutant | -10/Materials Mutant | -10/Mines Mutant | -10/Subcaves Resources | -11 -10 -10 -10 ----------- Run | Yrd Mat Min Sub Matter Collected 974 | 236 520 . 218 Remotely . | . . . . Salvage Created 823 | . 715 . 108 Parts 57 | . 50 . 7 Haulers Intercepted 2 | . 2 . . Recyclers Shooed 1 | . 1 . . Parts Field Recycled . | . . . . Retrieved Matter . | . . . . Parts Self-Destructed 3 | . . . 3 Prevented . | . . . . Kills | -11 -10 -10 -10 ------- Run | Yrd Mat Min Sub Combat Hostiles Destroyed 18 | . 13 . 5 Guns 16 | . 13 . 3 Cannons 2 | . . . 2 Classes Destroyed 8 | . 7 . 1 Tunneler 1 | . 1 . . Hauler 2 | . 2 . . Recycler 1 | . 1 . . Operator 3 | . 3 . . Watcher 2 | . 2 . . Swarmer 4 | . 3 . 1 Grunt 10 | . 10 . . Subdweller 4 | . . . 4 Best Kill Streak 4 | . 4 . 2 Combat Bots Only 3 | . 3 . 2 Max Kills in Single Turn 1 | . 1 . 1 Gunslinging . | . . . . Exploded . | . . . . Melee . | . . . . Uniques/NPCs Destroyed . | . . . . Combat | -11 -10 -10 -10 -------- Run | Yrd Mat Min Sub Hostile Shots Fired 155 | . 93 . 62 Missed 42 | . 25 . 17 Damage Taken 1748 | . 787 . 961 Core 250 | . 110 . 140 Absorbed by Shields . | . . . . Core Remaining (%) 100 | 100 . . . Volleys Fired 118 | . 94 . 24 Largest 2 | . 2 . 2 Hottest 100 | . 100 . 55 Shots Fired 235 | . 188 . 47 Gun 216 | . 188 . 28 Cannon 19 | . . . 19 Launcher . | . . . . Special . | . . . . Kinetic 208 | . 161 . 47 Thermal 27 | . 27 . . Explosive . | . . . . Electromagnetic . | . . . . Robot Hit Streak 10 | . 10 . 9 Robot Miss Streak 5 | . 5 . 3 Penetration Max . | . . . . Secondary Targets 2 | . 2 . . Max Gunslinging Chain 1 | . 1 . . Shots Hit Robots 154 | . 120 . 34 Core Hits 57 | . 46 . 11 Critical Kills . | . . . . Critical Parts Destroyed 1 | . 1 . . Critical Strikes 1 | . 1 . . Destroy 1 | . 1 . . Melee Attacks . | . . . . Impact . | . . . . Slashing . | . . . . Piercing . | . . . . Sneak Attacks . | . . . . Combat Hostiles . | . . . . Follow-up Attacks . | . . . . Damage Inflicted 1623 | . 1139 . 484 Guns 1339 | . 1134 . 205 Cannons 279 | . . . 279 Explosions . | . . . . Melee . | . . . . Ramming 5 | . 5 . . Kinetic 1464 | . 980 . 484 Thermal 154 | . 154 . . Explosive . | . . . . Electromagnetic . | . . . . Impact . | . . . . Slashing . | . . . . Piercing . | . . . . Highest Corruption 2 | . 2 2 2 Average Corruption 2 | . 2 2 2 Corruption Purged . | . . . . Corruption Blocked . | . . . . Effects 45 | . 34 2 9 Message Errors 6 | . 6 . . Matter Fused 12 | . 9 . 3 Heat Flow Errors 6 | . 3 1 2 Energy Discharges 12 | . 9 1 2 Parts Rejected 3 | . 2 . 1 Data Loss (minor) 2 | . 1 . 1 Data Loss (major) 3 | . 3 . . Misfires 1 | . 1 . . Overload Shots . | . . . . Overflow Damage . | . . . . Projectiles . | . . . . Explosions . | . . . . Melee . | . . . . Knockbacks 2 | . . . 2 Impact . | . . . . Kinetic 2 | . . . 2 Secondary . | . . . . Self-Inflicted Damage . | . . . . Shots . | . . . . Rammed 3 | . 3 . . Targets Rammed 3 | . 3 . . Kicked . | . . . . Crushed . | . . . . Highest Temperature 221 | . 205 221 208 Average Temperature 42 | . 33 114 86 Received Heat Transfer 573 | . 375 . 198 Siege Activations . | . . . . Robots Corrupted . | . . . . Combat Hostiles . | . . . . Parts Fried . | . . . . Impact Corruptions . | . . . . Robots Melted . | . . . . Combat Hostiles . | . . . . Parts Melted 2 | . 2 . . Heat Transferred 444 | . 444 . . Parts Sabotaged . | . . . . Parts Stolen . | . . . . Parts Stripped . | . . . . Power Chain Reactions . | . . . . Alert | -11 -10 -10 -10 ------- Run | Yrd Mat Min Sub Peak Influence 161 | . 161 9 . Initial 9 | . . 9 . Average 56 | . 64 9 . Maximum Alert Level . | . . . . Low Security (%) 100 | 100 100 100 . Level 1 . | . . . . Level 2 . | . . . . Level 3 . | . . . . Level 4 . | . . . . Level 5 . | . . . . High Security . | . . . . Max Security . | . . . . Squads Dispatched 3 | . 3 . . Investigation 1 | . 1 . . Extermination . | . . . . Reinforcement 2 | . 2 . . Assault . | . . . . Garrison . | . . . . Intercept . | . . . . Searches Triggered . | . . . . Construction Impeded . | . . . . Haulers Reinforced . | . . . . Active Scanning Responses . | . . . . Cargo Convoy Interrupts . | . . . . Stealth | -11 -10 -10 -10 --------- Run | Yrd Mat Min Sub Distress Signals 1 | . 1 . . Communications Jammed . | . . . . Distress Signals . | . . . . Times Spotted 57 | . 43 2 12 Peak Tracking Total 7 | . 5 2 7 Tactical Retreats 3 | . 2 . 1 Traps | -11 -10 -10 -10 ------- Run | Yrd Mat Min Sub Traps Triggered 1 | . 1 . . Indirectly . | . . . . Trap Hack Attempts . | . . . . Triggered . | . . . . Disarmed . | . . . . Reprogrammed . | . . . . Reused . | . . . . Traps Extracted . | . . . . Installed . | . . . . Triggered . | . . . . Machines | -11 -10 -10 -10 ---------- Run | Yrd Mat Min Sub Machines Disabled . | . . . . Max in Single Turn . | . . . . Machines Repaired . | . . . . Machines Dismantled . | . . . . Machines Sabotaged . | . . . . Overloaded Fab Kills . | . . . . Hacking | -11 -10 -10 -10 --------- Run | Yrd Mat Min Sub Machines Accessed 7 | . 7 . . Terminals 5 | . 5 . . Fabricators . | . . . . Repair Stations . | . . . . Recycling Units 2 | . 2 . . Scanalyzers . | . . . . Garrison Access . | . . . . Total Hacks 21 | . 21 . . Successful 14 | . 14 . . Failed 7 | . 7 . . Catastrophic . | . . . . Database Lockouts . | . . . . Manual 11 | . 11 . . Terminals 16 | . 16 . . Fabricators . | . . . . Repair Stations . | . . . . Recycling Units 5 | . 5 . . Scanalyzers . | . . . . Garrison Access . | . . . . Terminal Hacks 5 | . 5 . . Robot Analysis 1 | . 1 . . Prototype ID Bank 1 | . 1 . . Recycling Unit Index 1 | . 1 . . Hauler Manifests 1 | . 1 . . Zone Layout 1 | . 1 . . Fabricator Hacks . | . . . . Repair Station Hacks . | . . . . Recycling Unit Hacks 3 | . 3 . . Report Inventory 2 | . 2 . . Retrieve Components 1 | . 1 . . Scanalyzer . | . . . . Garrison Access Hacks . | . . . . Unauthorized Hacks 6 | . 6 . . Terminals 5 | . 5 . . Botnet 5 | . 5 . . Fabricators . | . . . . Repair Stations . | . . . . Recycling Units 1 | . 1 . . Reject 1 | . 1 . . Scanalyzers . | . . . . Garrison Access . | . . . . Data Cores Recovered . | . . . . Used . | . . . . Hacking Detections 4 | . 4 . . Full Trace Events 2 | . 2 . . Feedback Events . | . . . . Feedback Blocked . | . . . . Robot Schematics Acquired . | . . . . Robots Built . | . . . . Authchips . | . . . . Time . | . . . . Total Robot Build Rating . | . . . . Part Schematics Acquired . | . . . . Parts Built . | . . . . Authchips . | . . . . Time . | . . . . Total Part Build Rating . | . . . . Parts Repaired . | . . . . Time . | . . . . Parts Recycled . | . . . . Recycled Matter . | . . . . Retrieved Matter . | . . . . Retrieved Components 10 | . 10 . . Parts Scanalyzed . | . . . . Part Schematics Acquired . | . . . . Parts Damaged . | . . . . Bothacking | -11 -10 -10 -10 ------------ Run | Yrd Mat Min Sub Used RIF Installer . | . . . . Robots Hacked . | . . . . Non-combat . | . . . . Combat . | . . . . Robot Hacks Applied . | . . . . Relay Couplers Released . | . . . . Fabnet Peak Effective % . | . . . . Robots Rewired . | . . . . Allies Hacked . | . . . . Hacks Repelled . | . . . . Allies | -11 -10 -10 -10 -------- Run | Yrd Mat Min Sub Total Allies . | . . . . Largest Group . | . . . . Highest-Rated Group . | . . . . Highest-Rated Ally . | . . . . Total Orders . | . . . . Ally Attacks . | . . . . Total Damage . | . . . . Kills . | . . . . Allies Corrupted . | . . . . Allies Melted . | . . . . Intel | -11 -10 -10 -10 ------- Run | Yrd Mat Min Sub Robot Analysis Total 1 | . 1 . . Derelict Logs Recovered 4 | . . 2 2 Drone Launches . | . . . . Drone Recoveries . | . . . . Exploration | -11 -10 -10 -10 ------------- Run | Yrd Mat Min Sub Turns Passed 3343 | 86 2467 338 452 Spaces Moved 1332 | 52 986 139 155 Core 11 | 11 . . . Treads 1321 | 41 986 139 155 Legs . | . . . . Wheels . | . . . . Hover . | . . . . Flight . | . . . . Fastest Speed 50 | 50 160 240 160 Average Speed 216 | 151 212 240 239 Slowest Speed 240 | 160 240 240 240 Overloaded Moves . | . . . . Propulsion Burnouts . | . . . . Robots Hopped . | . . . . Cave-ins Triggered . | . . . . Exploration Rate (%) 34 | 4 85 39 9 Regions Visited 3 Branch Regions 2 Pre-discovered Areas 2 | . . 1 1 Known Exits Taken 2 | . 1 1 . Unknown Exits Taken 1 | 1 . . . Scrap Searched . | . . . . Spaces Dug . | . . . . Terrain Destroyed . | . . . . Melee . | . . . . Projectile . | . . . . AOE . | . . . . Terrain Rammed . | . . . . Walls Destroyed . | . . . . Machines Disabled . | . . . . Actions | -11 -10 -10 -10 --------- Run | Yrd Mat Min Sub Total 1590 | 57 1198 144 191 Wait 82 | . 76 6 . Move 1329 | 51 985 138 155 Hop . | . . . . Pick Up 20 | . 17 . 3 Fast Attach 15 | 6 8 . 1 Attach 9 | . 5 . 4 Detach 7 | . 6 . 1 Swap 2 | . . . 2 Drop 5 | . 4 . 1 Fire 118 | . 94 . 24 Melee . | . . . . Ram . | . . . . Kick . | . . . . Crush 3 | . 3 . . Escape Stasis . | . . . . Rewire . | . . . . Trap . | . . . . Miscellaneous . | . . . . Route ------- -11/Scrapyard -10/Materials (discovered 4 exits: *Mat x3 / *Min) -10/Mines (discovered 3 exits: *Mat x2 / *Sub) -10/Subcaves History --------- Turn | Location | Event 13 | -11/Scrapyard | Discovered new exit (range 16) 87 | -11/Scrapyard | Entered Materials 314 | -10/Materials | Build established: Mutant 382 | -10/Materials | Discovered new exit (range 3) 411 | -10/Materials | Discovered new exit (range 14) 824 | -10/Materials | Discovered new exit (range 16) 969 | -10/Materials | Discovered new exit (range 16) 2369 | -10/Materials | Identified exit to Mines 2436 | -10/Materials | Identified exit to Materials 2554 | -10/Materials | Entered Mines 2569 | -10/Mines | Learned location of Zion (-6) 2655 | -10/Mines | Discovered exit to Materials (range 9) 2674 | -10/Mines | Met a Derelict bent on vengeance 2696 | -10/Mines | Discovered exit to Materials (range 6) 2800 | -10/Mines | Assembled infested the area 2805 | -10/Mines | Assisted by a Guerilla fighting off Assembled 2848 | -10/Mines | Discovered new exit (range 10) 2865 | -10/Mines | Identified exit to Subcaves 2892 | -10/Mines | Entered Subcaves 2923 | -10/Subcaves | Met a Zionite searching for "candidates" 2941 | -10/Subcaves | Learned location of 1 exit from Materials 3044 | -10/Subcaves | Learned Materials terminal intel 3284 | -10/Subcaves | Core integrity fell below 50% 3318 | -10/Subcaves | Ambushed by swarm of Subdwellers 3331 | -10/Subcaves | Core integrity fell below 20% 3344 | -10/Subcaves | Destroyed by DF-SZO(R) with Subdweller Laser Last Messages --------------- 03321_ 2G-61O(R) emerges from the Twisted Machinery. 03323_ B5-ZJZ(R) emerges from the Twisted Machinery. 03325_ System corrupted: Component data lost. 03327_ 2G-61O(R) destroyed. 03327_ Assault Rifle destroyed. 03328_ Subatomizers dissect the Sub. Monowheel. 03331_ Lgt. Treads destroyed. 03332_ Discarded Signal Interpreter. 03332_ Dropped Hcp. Storage Unit. 03334_ U0-YYR(R) affixes Scrap Shield Fragment to Scrap Shield. 03336_ Acquired Lgt. Assault Rifle. 03338_ B5-ZJZ(R) suffers critical hit (Destroy). 03341_ Subatomizers dissect the Sub. Monowheel. 03341_ HK-AWS(R) destroyed. 03341_ Lgt. Assault Rifle destroyed. 03342_ Acquired 22 matter. 03343_ System corrupted: Lgt. Cannon rejected. 03343_ Lgt. Treads destroyed. 03343_ Extracted 65 matter. 03343_ Scrap Shield destroyed. Map ----- +----------------------------------------------------+ | ?????????????????????????????????????????????????? | | ?????????????????????????????????????????????????? | | ?????????????????????????????????????????????????? | | ?????????????????????????????????????????????????? | | ?????????????????????????????????????????????????? | | ?????????????????????????????????????????????????? | | ?????????????????????????????????????????????????? | | ?????????????????????????????????????????????????? | | ?????????????????????????????????????????????????? | | ?????????????????????????????????????????????????? | | ?????????????????????????????????????????????????? | | ?????????????????????????????????????????????????? | | ?????????????????????????????????????????????????? | | ?????????????????????????????????????????????????? | | ?????????????????????????????????????????????????? | | ?????????????????????????????????????????????????? | | ?????????????????????????????????????????????????? | | ?????????????????????????????????????????????????? | | ?????????????????????????????????????????????????? | | ?????????????????????????????????????????????????? | | ?????????????????????????????????????????????????? | | ?????????????????????????????????????????????????? | | ???????????????????????#####?????????????????????? | | ??????????????????????##[ ;##????????????????????? | | ??????????????????????#!!! #????????????????????? | | ?????????????????????##!!@]##????????????????????? | | ?????????????????????#=RR]##?????????????????????? | | ?????????????????????##![!#??????????????????????? | | ??????????????????????#RRR####???????????????????? | | ??????????????????????#%!=* ##??????????????????? | | ??????????????????????#%%[! ##?????????????????? | | ?????????????????????# # # #####?????????????? | | ????????????????????# #### # ##????????????? | | ????????????????? ??# # #????????????? | | ?????????????? ####?#### #????????????? | | ?????????????? ##????????# ##????????????? | | ?????????????##### #?###?????## #?????????????? | | ?????????????????## ?## ##????# #?????????????? | | ??????????????????####?# % #???### #?????????????? | | ????????????????????#### ##?##% ##????????????? | | ?????????????######## "" &%### "#????????????? | | ??????????#### &! #????????????? | | ??????????# % # "#???????????? | | ?????####### # ## " #####???????????? | | ?????# ## # ### ###### #???????????????? | | ?????# #?# ###??# #???????????????? | | ????## #### ##?# # #### % ##???????????????? | | ????# ##?####### ## #????????????????? | | ????## ### ## ##???????????????? | | ????# ## #"" # ## # ######??????????? | +----------------------------------------------------+ Best States ------------- Heat Dissipation 35 Energy Generation 19 Energy Capacity 315 Matter Stores 300 Matter Capacity 300 Sight Range 16 Terrain Scan Density 10 Armor Coverage 800 Evasion (%) 40 Recoil Reduction 2 Item Schematics ----------------- None Robot Schematics ------------------ None Fabricated ------------ Nothing Alien Tech Used ----------------- None Achievements -------------- None Challenges ------------ None Game ------ Seed ResetRemoteSpecial Manual? 0 Play Time 00:17:18 Cumulative 48.7 hours Start 2024.04.18 @ 13:48:19 End 2024.04.18 @ 14:02:52 Sessions 1 Manual Loads 0 Difficulty Rogue Special Mode None Game No. 55 Rogue 49 Adventurer 6 Explorer 0 Win Type - Total 0 Types 0/0/0/0/0/0/0/0/0 Lore% 23 Gallery% 38 Achievement% 31 Wizard Run 0 Options --------- Layout 0 ASCII 0 Keyboard 1 Movement Numpad Keybinds 0 Fullscreen 0 Font 12/Smallcaps Map View 76x50 Zoom Use 0% Tactical HUD 1 Map Filters NONE Filters NONE Steam 1 RUN: 0d3df445-7ae0-470e-a83e-e6bd6171564b